bitfinex/quotes_SOLUSD_20240821
["timestamp","ask_amount","ask_price","bid_price","bid_amount"]
[1724231590566,15.1111,141.59,141.55,4.94721054]
[1724231590744,15.1111,141.59,141.55,14.84274883]
[1724231591143,15.1111,141.59,141.55,13.43]
[1724231591341,15.1111,141.59,141.56,45.0]
[1724231591543,15.1111,141.59,141.55,13.43]
[1724231592552,15.1111,141.59,141.54,58.43]
[1724231592757,15.1111,141.59,141.55,3.53447087]
[1724231592953,15.1111,141.59,141.54,13.43]
[1724231593159,15.1111,141.59,141.55,3.53444978]
[1724231593452,15.1111,141.59,141.54,13.43]
[1724231593659,15.1111,141.59,141.55,3.5344502]
[1724231593866,15.1111,141.59,141.54,13.43]
[1724231594177,15.1111,141.59,141.55,3.53444978]
[1724231594346,15.1111,141.59,141.54,13.43]
[1724231594548,15.1111,141.59,141.55,3.53444978]
[1724231594758,15.1111,141.59,141.55,45.0]
[1724231595141,15.1111,141.59,141.56,3.53432889]
[1724231595341,15.1111,141.59,141.55,45.0]
[1724231595538,15.1111,141.59,141.56,3.53434076]
[1724231595764,15.1111,141.59,141.55,45.0]
[1724231596171,15.1111,141.59,141.56,3.53441227]
[1724231596352,15.1111,141.59,141.55,45.0]
[1724231596545,15.1111,141.59,141.56,3.53439076]
[1724231596746,15.1111,141.59,141.54,58.43]
[1724231596970,15.1111,141.59,141.55,3.53439076]
[1724231597178,15.1111,141.59,141.56,3.53439076]
[1724231597347,15.1111,141.59,141.54,58.43]
[1724231597551,15.1111,141.59,141.55,3.53439162]
[1724231597745,15.1111,141.59,141.56,3.5343912]
[1724231598045,15.1111,141.59,141.53,0.12549]
[1724231598243,15.1111,141.59,141.54,3.53443442]
[1724231598586,15.1111,141.59,141.53,45.0]
[1724231598587,15.1111,141.59,141.55,3.53443442]
[1724231598768,15.1111,141.59,141.53,45.0]
[1724231598937,15.1111,141.59,141.54,3.53441295]
[1724231599137,15.1111,141.59,141.55,3.53441295]
[1724231599349,15.1111,141.59,141.56,3.53441295]
[1724231599557,15.1111,141.59,141.53,65.0]
[1724231599770,15.1111,141.59,141.54,3.65988041]
[1724231599976,15.1111,141.59,141.55,3.53439041]
[1724231600179,15.1111,141.59,141.56,3.53439041]
[1724231600379,15.1111,141.59,141.54,0.12549]
[1724231600582,15.1111,141.59,141.55,3.53427572]
[1724231600889,6.4813,141.61,141.56,4.94690635]
[1724231601187,6.4813,141.61,141.57,3.65976572]
[1724231601375,6.4813,141.61,141.58,1.41241926]
[1724231601890,16.6279,141.63,141.58,1.41241926]
[1724231602855,16.6279,141.63,141.57,78.55549]
[1724231603085,16.6279,141.63,141.58,3.53387717]
[1724231603278,16.6279,141.63,141.57,78.55549]
[1724231603457,16.6279,141.63,141.57,65.12549]
[1724231603653,13.43,141.61,141.53,33.43]
[1724231603880,13.43,141.61,141.54,3.53432331]
[1724231604059,13.43,141.61,141.55,3.53432331]
[1724231604259,13.43,141.61,141.51,20.0]
[1724231604481,13.43,141.61,141.52,3.53435535]
[1724231604699,13.43,141.61,141.53,3.53435535]
[1724231604986,13.43,141.61,141.54,3.53435535]
[1724231605163,13.43,141.61,141.52,1.41289871]
[1724231605359,13.43,141.61,141.51,20.0]
[1724231605562,13.43,141.61,141.52,3.53456083]
[1724231605866,13.43,141.61,141.53,4.94742011]
[1724231606106,13.43,141.61,141.54,3.53456083]
[1724231606390,13.43,141.61,141.51,75.68757615]
[1724231606692,13.43,141.61,141.52,48.78556108]
[1724231606893,13.43,141.61,141.53,3.53458108]
[1724231607059,13.43,141.61,141.54,3.53458108]
[1724231607261,13.43,141.61,141.52,45.25098]
[1724231607468,13.43,141.61,141.53,3.53458108]
[1724231607767,6.641,141.6,141.54,3.53458108]
[1724231607966,6.641,141.6,141.52,45.25098]
[1724231608191,6.641,141.6,141.53,4.94744564]
[1724231608411,6.641,141.6,141.54,3.53458235]
[1724231608695,6.641,141.6,141.55,3.53458235]
[1724231609000,6.641,141.6,141.54,1.41286333]
[1724231609301,6.641,141.6,141.55,3.53439102]
[1724231609469,6.641,141.6,141.55,45.0]
[1724231609665,6.641,141.6,141.55,66.41272353]
[1724231609988,6.641,141.6,141.56,3.53414424]
[1724231610168,6.641,141.6,141.57,3.53414424]
[1724231610375,6.641,141.6,141.56,45.0]
[1724231610801,6.641,141.6,141.54,0.12549]
[1724231610982,6.641,141.6,141.55,3.53432169]
[1724231611189,6.641,141.6,141.54,45.12549]
[1724231611480,6.641,141.6,141.55,3.5343219]
[1724231611682,6.641,141.6,141.54,45.12549]
[1724231611896,6.641,141.6,141.55,3.53431043]
[1724231612102,6.641,141.6,141.54,45.12549]
[1724231612409,6.641,141.6,141.55,4.94698042]
[1724231612694,6.641,141.6,141.54,45.12549]
[1724231612896,6.641,141.6,141.55,3.53431086]
[1724231613112,6.641,141.6,141.54,45.12549]
[1724231613405,6.641,141.6,141.55,3.53428977]
[1724231613696,29.5201,141.58,141.51,20.0]
[1724231613900,29.5201,141.58,141.52,3.53466581]
[1724231614197,29.5201,141.58,141.53,3.53466581]
[1724231614490,29.5201,141.58,141.51,20.0]
[1724231615418,29.5201,141.58,141.52,3.53489068]
[1724231615584,29.5201,141.58,141.53,3.53489068]
[1724231615786,29.5201,141.58,141.52,45.0]
[1724231615987,29.5201,141.58,141.53,3.5349122]
[1724231616312,29.5201,141.58,141.52,45.0]
[1724231616511,29.5201,141.58,141.53,3.5348911]
[1724231616808,29.5201,141.58,141.52,45.0]
[1724231616977,29.5201,141.58,141.53,3.5348911]
[1724231616978,16.0901,141.58,141.53,3.5348911]
[1724231617179,16.0901,141.58,141.52,45.0]
[1724231617379,16.0901,141.58,141.53,3.5348911]
[1724231617610,16.0901,141.58,141.52,45.0]
[1724231617811,16.0901,141.58,141.53,3.5348911]
[1724231618019,16.0901,141.58,141.52,45.0]
[1724231618185,16.0901,141.58,141.53,3.53489843]
[1724231618385,16.0901,141.58,141.52,45.0]
[1724231618598,16.0901,141.58,141.53,3.53489843]
[1724231618786,16.0901,141.58,141.52,45.0]
[1724231619004,16.0901,141.58,141.53,3.5348985]
[1724231619193,16.0901,141.58,141.52,45.0]
[1724231619400,16.0901,141.58,141.53,3.53488805]
[1724231619594,16.0901,141.58,141.52,45.0]
[1724231619797,16.0901,141.58,141.53,3.53491522]
[1724231620009,16.0901,141.58,141.52,45.0]
[1724231620207,16.0901,141.58,141.53,3.53491491]
[1724231620485,16.0901,141.58,141.52,45.0]
[1724231620798,16.0901,141.58,141.53,3.53491005]
[1724231621005,16.0901,141.58,141.52,45.0]
[1724231621312,16.0901,141.58,141.53,3.53491005]
[1724231621516,16.0901,141.58,141.52,45.0]
[1724231621696,16.0901,141.58,141.53,3.53491275]
[1724231621900,16.0901,141.58,141.52,45.0]
[1724231622083,16.0901,141.58,141.53,3.53490542]
[1724231622284,16.0901,141.58,141.52,45.0]
[1724231622485,29.5201,141.58,141.53,3.53490726]
[1724231622784,29.5201,141.58,141.5,29.5]
[1724231622993,29.5201,141.58,141.51,3.5349488]
[1724231623195,29.5201,141.58,141.52,3.5349488]
[1724231623404,29.5201,141.58,141.5,29.5]
[1724231628796,16.0901,141.58,141.5,30.91318554]
[1724231629120,16.0901,141.58,141.51,68.6608989]
[1724231629283,16.0901,141.58,141.52,1.41297611]
[1724231629888,16.0901,141.58,141.53,1.41297479]
[1724231630086,16.0901,141.58,141.53,21.41297479]
[1724231630308,16.0901,141.58,141.54,45.0]
[1724231630515,16.0901,141.58,141.51,33.55549]
[1724231630720,16.0901,141.58,141.52,50.07310284]
[1724231631011,16.0901,141.58,141.53,3.53471044]
[1724231632427,16.0901,141.58,141.52,45.12549]
[1724231632592,16.0901,141.58,141.53,3.66013163]
[1724231632914,16.0901,141.58,141.53,3.66013326]
[1724231633289,16.0901,141.58,141.53,3.53464326]
[1724231633494,16.0901,141.58,141.53,4.94750666]
[1724231633704,16.0901,141.58,141.54,45.0]
[1724231634690,6.641,141.6,141.55,34.84276328]
[1724231635001,6.641,141.6,141.56,45.25098]
[1724231635201,6.641,141.6,141.56,45.12549]
[1724231636508,6.641,141.6,141.51,49.4673]
[1724231636706,20.071,141.6,141.52,3.53460708]
[1724231637026,20.071,141.6,141.53,3.53460708]
[1724231637194,20.071,141.6,141.52,3.53460708]
[1724231637390,20.071,141.6,141.53,3.53460708]
[1724231637623,20.071,141.6,141.52,3.53460708]
[1724231637830,20.071,141.6,141.53,3.66009708]
[1724231638126,20.071,141.6,141.53,48.66009708]
[1724231638310,20.071,141.6,141.53,45.12549]
[1724231638503,20.071,141.6,141.53,0.12549]
[1724231638801,20.071,141.6,141.53,3.66013224]
[1724231639202,15.6532,141.57,141.5,29.5]
[1724231639526,15.6532,141.57,141.51,3.53490932]
[1724231639698,15.6532,141.57,141.52,3.53490932]
[1724231639900,15.6532,141.57,141.51,3.53490932]
[1724231640119,15.6532,141.57,141.52,3.53490932]
[1724231640312,15.6532,141.57,141.51,4.94792213]
[1724231640623,15.6532,141.57,141.52,25.19886587]
[1724231640812,15.6532,141.57,141.53,45.0]
[1724231641134,15.6532,141.57,141.54,1.4128613]
[1724231641507,15.6532,141.57,141.54,1.4128587]
[1724231641718,23.0276,141.6,141.54,20.0]
[1724231642033,23.0276,141.6,141.55,45.12549]
[1724231642898,23.0276,141.6,141.56,20.0]
[1724231643110,23.0276,141.6,141.55,45.0]
[1724231643293,23.0276,141.6,141.55,65.0]
[1724231645027,23.0276,141.6,141.56,1.41260087]
[1724231645221,23.0276,141.6,141.55,65.0]
[1724231647122,23.0276,141.6,141.56,0.25098]
[1724231647706,23.0276,141.6,141.55,65.0]
[1724231651143,23.0276,141.6,141.56,0.25098]
[1724231651517,15.0994,141.63,141.57,33.43]
[1724231651829,15.0994,141.63,141.59,20.0]
[1724231652033,15.0994,141.63,141.6,45.0]
[1724231652434,15.0994,141.63,141.58,0.12549]
[1724231652639,15.0994,141.63,141.58,45.12549]
[1724231652829,15.0994,141.63,141.57,20.0]
[1724231653015,15.0994,141.63,141.56,3.53395984]
[1724231653216,15.0994,141.63,141.56,45.0]
[1724231653415,15.0994,141.63,141.55,20.0]
[1724231654043,15.0994,141.63,141.55,23.53414197]
[1724231654226,15.0994,141.63,141.53,23.53414197]
[1724231654427,13.43,141.61,141.54,3.53414197]
[1724231654626,6.5971,141.6,141.55,3.53414197]
[1724231654826,6.5971,141.6,141.53,3.53414197]
[1724231655030,6.5971,141.6,141.54,3.53414197]
[1724231655234,6.5971,141.6,141.54,3.53438734]
[1724231655544,6.5971,141.6,141.53,20.0]
[1724231655751,6.5971,141.6,141.54,3.53438716]
[1724231656547,6.5971,141.6,141.54,48.53438716]
[1724231656750,6.5971,141.6,141.54,45.0]
[1724231656921,6.5971,141.6,141.52,33.53705371]
[1724231657124,13.43,141.59,141.53,3.53440832]
[1724231657324,13.43,141.59,141.52,33.53705371]
[1724231657661,15.0372,141.58,141.53,3.53446283]
[1724231658323,15.0372,141.58,141.52,37.07151654]
[1724231659033,15.0372,141.58,141.52,33.53705371]
[1724231660169,13.43,141.57,141.52,33.53705371]
[1724231662445,15.0372,141.58,141.52,33.53705371]
[1724231667570,6.3452,141.57,141.52,33.53705371]
[1724231667743,19.7752,141.57,141.52,33.53705371]
[1724231672964,6.3452,141.57,141.52,33.53705371]
[1724231673167,6.3452,141.57,141.53,1.41291474]
[1724231673676,6.3452,141.57,141.52,33.53705371]
[1724231674040,6.3452,141.57,141.52,38.48489982]
[1724231674646,6.3452,141.57,141.52,37.07199485]
[1724231675760,6.3452,141.57,141.53,65.25098]
[1724231676357,6.3452,141.57,141.53,45.0]
[1724231676559,6.3452,141.57,141.52,33.53705371]
[1724231676751,6.3452,141.57,141.52,37.07200478]
[1724231677772,6.3452,141.57,141.53,45.12549]
[1724231677970,6.3452,141.57,141.53,65.12549]
[1724231678174,15.0372,141.58,141.53,65.12549]
[1724231678352,15.0372,141.58,141.53,78.55549]
[1724231679875,15.0372,141.58,141.53,65.12549]
[1724231682143,15.0372,141.58,141.54,1.41280657]
[1724231682352,15.0372,141.58,141.54,14.84280657]
[1724231682665,6.4063,141.61,141.55,46.5381995]
[1724231682872,6.4063,141.61,141.55,45.12549]
[1724231684350,6.4063,141.61,141.56,1.41261414]
[1724231685069,6.4063,141.61,141.55,45.12549]
[1724231685279,6.4063,141.61,141.55,65.12549]
[1724231685484,6.4063,141.61,141.56,0.12549]
[1724231686864,6.4063,141.61,141.55,65.12549]
[1724231687060,6.4063,141.61,141.55,45.12549]
[1724231687481,19.8363,141.61,141.53,20.0]
[1724231687670,19.8363,141.61,141.54,3.53420285]
[1724231687859,19.8363,141.61,141.53,20.0]
[1724231688182,19.8363,141.61,141.54,3.53422359]
[1724231688348,19.8363,141.61,141.53,20.0]
[1724231688547,19.8363,141.61,141.54,3.53422401]
[1724231690660,19.8363,141.61,141.54,48.78524396]
[1724231690863,19.8363,141.61,141.54,45.25098]
[1724231692293,19.8363,141.61,141.55,23.53416542]
[1724231692463,6.4063,141.61,141.55,23.53416542]
[1724231695284,6.4063,141.61,141.56,45.0]
[1724231696586,6.4063,141.61,141.54,0.25098]
[1724231696792,6.4063,141.61,141.54,48.78514542]
[1724231696965,6.4063,141.61,141.54,45.25098]
[1724231697677,6.4063,141.61,141.55,20.0]
[1724231697986,6.4063,141.61,141.56,45.0]
[1724231701215,6.4063,141.61,141.53,20.0]
[1724231701379,6.4063,141.61,141.54,3.53416828]
[1724231701694,6.4063,141.61,141.55,3.53416828]
[1724231701878,6.4063,141.61,141.54,3.53416828]
[1724231702088,6.4063,141.61,141.55,3.53416828]
[1724231702277,19.8363,141.61,141.54,3.53416828]
[1724231702480,19.8363,141.61,141.53,20.0]
[1724231702679,19.8363,141.61,141.54,48.53420285]
[1724231702886,19.8363,141.61,141.55,23.78518285]
[1724231702887,6.4063,141.61,141.55,23.78518285]
[1724231703201,6.4063,141.61,141.56,46.412526]
[1724231703494,6.4063,141.61,141.56,45.0]
[1724231704500,6.4063,141.61,141.53,20.0]
[1724231704808,6.4063,141.61,141.54,3.65963316]
[1724231705010,6.4063,141.61,141.55,3.53414316]
[1724231706509,6.4063,141.61,141.54,3.53414316]
[1724231706689,6.4063,141.61,141.55,3.53414316]
[1724231706872,6.4063,141.61,141.54,3.53414316]
[1724231707072,6.4063,141.61,141.55,3.53414316]
[1724231707283,6.4063,141.61,141.54,3.53414316]
[1724231707481,6.4063,141.61,141.55,3.53414316]
[1724231709604,6.4063,141.61,141.56,1.41264775]
[1724231709810,6.4063,141.61,141.55,23.53414316]
[1724231710000,6.4063,141.61,141.56,1.41258902]
[1724231710176,6.4063,141.61,141.56,46.41258902]
[1724231710379,7.33444874,141.65,141.58,20.0]
[1724231710604,7.33444874,141.65,141.59,45.12549]
[1724231710801,7.33444874,141.65,141.56,20.0]
[1724231711004,7.33444874,141.65,141.57,0.25098]
[1724231711184,7.33444874,141.65,141.57,45.25098]
[1724231711503,7.33444874,141.65,141.58,20.0]
[1724231711697,7.33444874,141.65,141.59,45.12549]
[1724231712285,7.33444874,141.65,141.57,0.12549]
[1724231712493,7.33444874,141.65,141.58,20.0]
[1724231713121,7.33444874,141.65,141.59,45.12549]
[1724231713629,7.33444874,141.65,141.6,20.12549]
[1724231713993,7.33444874,141.65,141.6,20.0]
[1724231715237,7.33444874,141.65,141.59,45.0]
[1724231715414,7.33444874,141.65,141.58,20.0]
[1724231717103,20.76444874,141.65,141.59,45.0]
[1724231717715,20.76444874,141.65,141.6,20.0]
[1724231718802,7.33444874,141.65,141.61,45.0]
[1724231719008,7.33444874,141.65,141.6,20.0]
[1724231719205,7.33444874,141.65,141.61,1.41209327]
[1724231719815,7.33444874,141.65,141.6,20.0]
[1724231720205,7.33444874,141.65,141.61,45.0]
[1724231721720,20.76444874,141.65,141.6,20.0]
[1724231724110,20.76444874,141.65,141.61,45.0]
[1724231724310,7.33444874,141.65,141.61,45.0]
[1724231725037,7.33444874,141.65,141.61,46.4120127]
[1724231726531,20.76444874,141.65,141.6,20.0]
[1724231727719,20.76444874,141.65,141.61,45.0]
[1724231734329,20.76444874,141.65,141.61,45.0]
[1724231736535,20.76444874,141.65,141.6,20.0]
[1724231736843,7.33444874,141.65,141.61,1.41204125]
[1724231737046,7.33444874,141.65,141.61,46.41204125]
[1724231737244,7.33444874,141.65,141.62,20.0]
[1724231738247,7.33444874,141.65,141.61,45.0]
[1724231740749,7.33444874,141.65,141.59,0.12549]
[1724231740929,7.33444874,141.65,141.58,20.0]
[1724231741247,7.33444874,141.65,141.6,20.0]
[1724231743447,7.33444874,141.65,141.59,0.12549]
[1724231743643,7.33444874,141.65,141.59,45.12549]
[1724231744146,7.33444874,141.65,141.58,20.0]
[1724231744147,13.43,141.63,141.58,20.0]
[1724231744453,13.43,141.61,141.56,20.0]
[1724231744641,13.43,141.61,141.57,3.53417775]
[1724231744944,13.43,141.61,141.56,20.0]
[1724231746648,13.43,141.63,141.57,0.12549]
[1724231746849,13.43,141.63,141.58,20.0]
[1724231747147,13.43,141.63,141.59,1.41231782]
[1724231747334,13.43,141.63,141.58,20.0]
[1724231750557,13.43,141.63,141.59,1.41228974]
[1724231752535,7.33444874,141.65,141.6,20.0]
[1724231752729,7.33444874,141.65,141.61,1.41211018]
[1724231756663,7.33444874,141.65,141.6,20.0]
[1724231757367,7.33444874,141.65,141.61,1.41201855]
[1724231758325,7.33444874,141.65,141.6,20.0]
[1724231758529,20.76444874,141.65,141.61,0.12549]
[1724231760334,20.76444874,141.65,141.58,20.0]
[1724231760531,20.76444874,141.65,141.59,48.78485643]
[1724231760775,20.76444874,141.65,141.6,20.0]
[1724231760932,20.76444874,141.65,141.59,45.25098]
[1724231761343,20.76444874,141.65,141.6,20.0]
[1724231762861,13.43,141.61,141.56,20.0]
[1724231763253,16.012,141.6,141.56,20.0]
[1724231765367,16.012,141.6,141.57,1.41238215]
[1724231765747,6.2016,141.61,141.57,1.41238215]
[1724231765963,6.2016,141.61,141.58,1.41235368]
[1724231766971,6.2016,141.61,141.57,1.41235833]
[1724231767269,6.2016,141.61,141.58,1.41235815]
[1724231767465,6.2016,141.61,141.58,21.41235815]
[1724231767672,16.0103,141.63,141.58,21.41235815]
[1724231773157,29.4403,141.63,141.58,21.41235815]
[1724231773856,29.4403,141.63,141.58,20.0]
[1724231775779,16.0103,141.63,141.58,20.0]
[1724231776363,16.0103,141.63,141.59,46.53774147]
[1724231776689,16.0103,141.63,141.59,45.12549]
[1724231776985,29.4403,141.63,141.58,20.0]
[1724231780885,16.0103,141.63,141.58,20.0]
[1724231788768,16.0103,141.63,141.59,1.41226848]
[1724231788966,13.94479767,141.65,141.61,20.0]
[1724231791792,27.37479767,141.65,141.59,20.0]
[1724231791993,27.37479767,141.65,141.6,45.12549]
[1724231792183,27.37479767,141.65,141.61,1.41205735]
[1724231792792,13.94479767,141.65,141.61,21.41205735]
[1724231792993,13.94479767,141.65,141.61,20.0]
[1724231793294,13.94479767,141.65,141.62,1.41199875]
[1724231794083,13.94479767,141.65,141.62,46.41199875]
[1724231794594,13.94479767,141.65,141.62,45.0]
[1724231795380,7.33499767,141.65,141.63,1.41188219]
[1724231796577,7.33499767,141.65,141.62,45.0]
[1724231798295,7.33499767,141.65,141.63,20.0]
[1724231799303,7.33499767,141.65,141.64,46.4117689]
[1724231799675,7.33499767,141.65,141.64,46.5372589]
[1724231799878,7.33499767,141.65,141.64,45.12549]
[1724231800284,7.33499767,141.65,141.64,46.53719375]
[1724231800486,7.33499767,141.65,141.64,45.25098]
[1724231804015,7.33499767,141.65,141.63,20.0]
[1724231804513,7.33499767,141.65,141.61,20.0]
[1724231804890,7.33499767,141.65,141.64,20.0]
[1724231805608,7.33499767,141.65,141.64,20.25098]
[1724231805785,7.33499767,141.65,141.64,65.25098]
[1724231806796,7.33499767,141.65,141.64,66.66246939]
[1724231808893,7.33499767,141.65,141.64,20.0]
[1724231810603,7.33499767,141.65,141.64,20.12549]
[1724231810814,7.33499767,141.65,141.64,65.12549]
[1724231811910,7.33499767,141.65,141.64,65.25098]
[1724231820834,7.33499767,141.65,141.64,20.0]
[1724231821824,20.76499767,141.65,141.6,20.0]
[1724231822008,20.76499767,141.65,141.61,1.41205732]
[1724231822534,20.76499767,141.65,141.6,20.0]
[1724231823128,20.76499767,141.65,141.57,6.097]
[1724231823129,20.76499767,141.65,141.62,20.0]
[1724231826618,20.76499767,141.65,141.63,45.0]
[1724231828608,20.76499767,141.65,141.61,0.12549]
[1724231828912,20.76499767,141.65,141.61,45.25098]
[1724231829210,20.76499767,141.65,141.6,20.0]
[1724231830543,20.76499767,141.65,141.58,20.0]
[1724231830544,13.43,141.61,141.58,20.0]
[1724231832314,7.33499767,141.65,141.58,20.0]
[1724231832513,13.43,141.62,141.58,20.0]
[1724231834114,7.33499767,141.65,141.58,20.0]
[1724231834334,13.43,141.64,141.59,1.41223295]
[1724231835014,13.43,141.64,141.58,20.0]
[1724231840030,20.76499767,141.65,141.6,20.0]
[1724231840240,20.76499767,141.65,141.59,45.0]
[1724231840513,20.76499767,141.65,141.58,20.0]
[1724231840514,13.43,141.63,141.58,20.0]
[1724231844550,7.33499767,141.65,141.6,20.0]
[1724231844736,20.76499767,141.65,141.6,20.0]
[1724231845642,20.76499767,141.65,141.59,0.25098]
[1724231845820,20.76499767,141.65,141.59,45.12549]
[1724231846229,20.76499767,141.65,141.58,20.0]
[1724231848954,20.76499767,141.65,141.56,20.0]
[1724231848955,28.8872,141.61,141.56,20.0]
[1724231849724,28.8872,141.61,141.54,23.53473139]
[1724231849960,28.8872,141.61,141.54,20.0]
[1724231856746,28.8872,141.61,141.55,45.0]
[1724231860039,15.4572,141.61,141.56,20.0]
[1724231861541,15.4572,141.61,141.55,45.12549]
[1724231861743,15.4572,141.61,141.56,0.12549]
[1724231862335,28.8872,141.61,141.54,20.0]
[1724231864164,15.4572,141.61,141.54,20.0]
[1724231864363,6.2102,141.59,141.54,20.0]
[1724231875562,6.2102,141.59,141.55,45.0]
[1724231879664,6.2102,141.59,141.54,20.0]
[1724231881366,13.43,141.58,141.54,20.0]
[1724231882372,13.43,141.58,141.52,33.53705371]
[1724231882576,15.7709,141.57,141.52,33.53705371]
[1724231885494,20.0271,141.56,141.52,33.53705371]
[1724231886685,13.43,141.54,141.52,33.53705371]
[1724231888967,13.43,141.54,141.52,16.87045371]
[1724231889187,65.25098,141.53,141.52,16.87045371]
[1724231889767,20.0,141.53,141.52,16.87045371]
[1724231891466,20.25098,141.53,141.52,16.87045371]
[1724231894163,20.0,141.53,141.52,16.87045371]
[1724231897202,65.25098,141.53,141.52,16.87045371]
[1724231900196,71.26088,141.53,141.5,29.5]
[1724231900377,45.25098,141.52,141.5,29.5]
[1724231901007,52.6266864,141.52,141.5,29.5]
[1724231901196,7.6266864,141.52,141.5,29.5]
[1724231901512,20.9311964,141.52,141.5,29.5]
[1724231901681,20.8057064,141.52,141.5,29.5]
[1724231909719,20.0,141.51,141.5,29.5]
[1724231910097,7.3757064,141.52,141.5,29.5]
[1724231910302,19.4399,141.53,141.5,29.5]
[1724231910505,20.0,141.52,141.5,29.5]
[1724231915024,13.43,141.51,141.5,29.5]
[1724231915224,6.2965,141.5,141.46,33.55129429]
[1724231915544,71.42199,141.5,141.46,33.55129429]
[1724231915710,0.12549,141.49,141.46,33.55129429]
[1724231916413,13.43,141.47,141.46,33.55129429]
[1724231916606,78.68098,141.47,141.46,33.55129429]
[1724231917007,65.25098,141.47,141.46,33.55129429]
[1724231917229,78.68098,141.47,141.46,33.55129429]
[1724231920133,65.25098,141.47,141.46,33.55129429]
[1724231920306,20.25098,141.47,141.46,33.55129429]
[1724231920624,33.68098,141.47,141.46,33.55129429]
[1724231920829,86.05651522,141.47,141.46,33.55129429]
[1724231921133,41.05651522,141.47,141.46,33.55129429]
[1724231922414,27.37553522,141.47,141.46,33.55129429]
[1724231922613,20.0,141.47,141.46,33.55129429]
[1724231922813,33.43,141.47,141.46,33.55129429]
[1724231923802,78.68098,141.47,141.46,33.55129429]
[1724231924006,85.74958,141.47,141.46,33.55129429]
[1724231924505,99.17958,141.47,141.46,33.55129429]
[1724231925417,85.74958,141.47,141.46,33.55129429]
[1724231925633,139.46958,141.47,141.46,33.55129429]
[1724231925807,139.46958,141.47,141.45,0.6147114]
[1724231926014,65.25098,141.46,141.45,0.6147114]
[1724231926626,65.25098,141.46,141.39,15.3248]
[1724231926832,13.43,141.42,141.39,15.3248]
[1724231927015,20.0,141.41,141.39,15.3248]
[1724231928645,20.0,141.41,141.36,168.93950019]
[1724231928966,7.37722189,141.48,141.37,1.41471745]
[1724231929150,13.43,141.47,141.38,29.2173]
[1724231929318,13.43,141.41,141.38,15.7873]
[1724231929513,13.43,141.41,141.36,153.15220019]
[1724231930340,13.43,141.39,141.36,153.15220019]
[1724231930652,13.43,141.39,141.36,152.65220019]
[1724231930956,20.0,141.38,141.36,152.65220019]
[1724231932727,20.0,141.39,141.36,152.65220019]
[1724231933154,0.12549,141.38,141.36,152.65220019]
[1724231933353,0.25098,141.38,141.36,152.65220019]
[1724231933835,0.25098,141.38,141.36,152.15220019]
[1724231934339,58.68098,141.38,141.36,152.15220019]
[1724231934544,20.0,141.37,141.36,152.15220019]
[1724231934758,20.25098,141.37,141.36,152.15220019]
[1724231936245,65.25098,141.37,141.36,152.15220019]
[1724231936550,86.47098,141.37,141.36,152.15220019]
[1724231936754,65.25098,141.37,141.36,152.15220019]
[1724231938966,92.91658,141.37,141.36,61.94000019]
[1724231941633,71.69658,141.37,141.36,61.94000019]
[1724231942337,92.91658,141.37,141.25,20.0614]
[1724231942548,56.4539869,141.37,141.25,20.0614]
[1724231942751,7.0755,141.34,141.25,20.0614]
[1724231942952,13.43,141.32,141.25,20.0614]
[1724231943273,78.68098,141.32,141.25,5.0]
[1724231943764,86.04815077,141.32,141.25,5.0]
[1724231944063,72.61815077,141.32,141.25,5.0]
[1724231944261,33.91937077,141.32,141.25,5.0]
[1724231944451,20.0,141.31,141.25,5.0]
[1724231944863,41.22,141.31,141.25,5.0]
[1724231945371,13.43,141.27,141.25,5.0]